bitfinex-derivatives/quotes_ETHF0:USTF0_20251028
["timestamp","ask_amount","ask_price","bid_price","bid_amount"]
[1761662072680,3.2078,4140.5,4140.2,0.3756]
[1761662073184,41.2002,4140.4,4140.2,0.3756]
[1761662073383,41.2002,4140.4,4140.0,9.08616489]
[1761662073384,0.9221,4140.1,4140.0,9.08616489]
[1761662075089,41.3219,4140.1,4140.0,9.48756489]
[1761662075385,3.6128,4140.5,4140.0,10.49476489]
[1761662075585,3.6128,4140.5,4140.2,0.4014]
[1761662075782,3.2078,4140.5,4140.4,0.307]
[1761662075980,3.20957531,4141.0,4140.9,0.7084]
[1761662076377,3.20957531,4141.0,4140.1,3.2806]
[1761662076378,3.91367531,4141.0,4140.6,0.43473]
[1761662076574,3.91367531,4141.0,4140.1,3.2078]
[1761662076575,3.91367531,4141.0,4140.1,4.29477]
[1761662076778,0.00177531,4141.0,4140.9,0.9738]
[1761662076985,3.2078,4142.2,4140.8,0.61961]
[1761662076986,3.2078,4142.2,4141.0,0.4014]
[1761662077186,3.2078,4142.2,4140.8,3.3927]
[1761662077187,3.6128,4142.2,4141.3,0.43466]
[1761662077386,3.6128,4142.2,4141.5,0.4014]
[1761662077892,3.6128,4142.2,4141.6,0.43463]
[1761662078085,3.61487432,4142.2,4141.5,0.4014]
[1761662078282,0.405,4142.1,4141.5,0.4014]
[1761662078480,3.6128,4141.6,4141.3,0.4014]
[1761662078681,0.405,4141.3,4141.0,0.4014]
[1761662078887,3.2078,4141.6,4140.4,0.4014]
[1761662078888,0.7041,4141.1,4140.4,0.4014]
[1761662079088,3.6128,4141.6,4141.0,0.307]
[1761662079387,3.6128,4141.6,4141.0,0.7084]
[1761662079779,3.9119,4141.1,4140.5,0.43475]
[1761662079988,3.9119,4141.1,4140.4,0.4014]
[1761662080288,0.405,4141.0,4140.4,0.83615]
[1761662080481,0.405,4141.0,4140.4,0.4014]
[1761662080677,0.7041,4140.4,4140.0,9.08616489]
[1761662080879,0.7041,4140.4,4140.1,0.4014]
[1761662081081,3.2078,4141.1,4141.0,0.307]
[1761662081285,0.405,4141.0,4140.7,0.43472]
[1761662081480,0.405,4141.0,4140.7,0.83612]
[1761662081680,0.405,4141.0,4140.8,0.43471]
[1761662081888,3.2078,4141.1,4141.0,1.40849]
[1761662082278,3.2078,4141.1,4141.0,0.9738]
[1761662082684,3.9119,4141.1,4141.0,0.307]
[1761662083285,3.2078,4141.1,4141.0,0.9738]
[1761662083886,41.205,4141.5,4141.1,0.4014]
[1761662084089,0.405,4141.4,4141.1,0.4014]
[1761662084789,0.2991,4141.2,4140.7,0.43472]
[1761662084985,0.7041,4141.2,4140.8,0.4014]
[1761662085191,0.405,4141.1,4140.8,0.4014]
[1761662085396,0.405,4141.0,4140.8,0.4014]
[1761662085588,3.2078,4141.1,4141.0,0.7084]
[1761662086286,3.9119,4141.1,4140.5,0.4014]
[1761662086491,3.2078,4141.1,4141.0,1.40849]
[1761662086790,3.2078,4141.6,4141.5,0.7084]
[1761662086994,0.405,4141.5,4141.1,0.4014]
[1761662087295,0.7041,4141.2,4141.0,0.43469]
[1761662087592,0.7041,4141.2,4141.0,0.83609]
[1761662087786,0.7041,4141.2,4140.6,3.898]
[1761662087787,40.8,4141.5,4141.1,1.14308]
[1761662087994,41.205,4141.5,4141.2,0.43467]
[1761662088291,41.205,4141.5,4141.4,0.7084]
[1761662088292,40.8,4141.5,4141.4,0.7084]
[1761662088486,3.2078,4141.6,4141.5,1.40844]
[1761662088794,3.2078,4141.6,4141.5,0.9738]
[1761662088989,3.9119,4141.6,4141.5,0.9738]
[1761662089395,3.2078,4141.6,4141.5,1.40844]
[1761662090390,3.2078,4141.6,4141.5,1.48124]
[1761662091290,40.8,4142.1,4141.5,1.48124]
[1761662091291,0.7041,4142.0,4141.9,0.43459]
[1761662091498,3.20987432,4142.2,4142.1,0.7084]
[1761662091688,3.20987432,4142.2,4142.1,0.9738]
[1761662091888,3.91397432,4142.2,4142.1,0.9738]
[1761662092098,3.91397432,4142.2,4142.1,0.307]
[1761662092391,3.91397432,4142.2,4142.1,1.14298]
[1761662092392,0.30117432,4142.2,4142.1,1.14298]
[1761662092598,0.00207432,4142.2,4142.1,1.40838]
[1761662092905,0.00207432,4142.2,4142.1,1.48118]
[1761662093395,0.00207432,4142.2,4142.1,2.34148338]
[1761662093597,3.2078,4143.2,4143.1,0.9738]
[1761662094197,0.405,4143.1,4142.8,0.83591]
[1761662094402,3.2078,4143.2,4143.1,0.9738]
[1761662094700,3.20987178,4143.2,4143.1,0.97687649]
[1761662095201,0.00207178,4143.2,4143.1,1.04967649]
[1761662098197,3.2078,4144.2,4144.1,0.307]
[1761662098391,3.9119,4144.2,4144.1,0.7084]
[1761662098893,3.5069,4144.2,4144.1,0.9738]
[1761662099298,3.21020984,4144.2,4144.1,0.9738]
[1761662099597,4.17650984,4144.2,4144.1,0.307]
[1761662100406,0.2991,4143.8,4143.7,0.4014]
[1761662100605,0.2991,4143.5,4143.4,0.4014]
[1761662100798,0.2991,4143.5,4143.4,0.7084]
[1761662101399,0.2991,4143.5,4143.4,0.9738]
[1761662102103,0.7041,4143.5,4143.4,0.9738]
[1761662102307,0.2991,4143.2,4143.1,0.40447649]
[1761662102506,0.7041,4143.2,4143.1,0.71147649]
[1761662102914,0.2991,4143.2,4143.1,0.97687649]
[1761662103501,3.21020984,4144.2,4144.1,0.9738]
[1761662103707,3.21020984,4144.2,4144.1,1.40817]
[1761662104705,0.00240984,4144.2,4144.1,0.9738]
[1761662105098,0.00240984,4144.2,4144.1,1.0458]
[1761662105708,0.00240984,4144.2,4144.1,0.9738]
[1761662106513,3.2078,4144.7,4144.6,1.49032]
[1761662107103,3.2078,4145.2,4145.1,1.056]
[1761662107498,0.00170873,4145.2,4145.1,1.49027]
[1761662107702,0.00170873,4145.2,4145.1,1.056]
[1761662108002,0.00170873,4145.2,4144.1,0.4395]
[1761662108003,0.2837,4144.9,4144.1,0.4395]
[1761662108213,0.4357,4144.6,4144.2,0.4395]
[1761662108798,3.2078,4144.7,4144.6,0.5683]
[1761662109008,3.47890873,4145.2,4145.1,1.0078]
[1761662109305,3.20950873,4145.2,4145.1,1.0078]
[1761662109609,3.91460873,4145.2,4145.1,1.0078]
[1761662109907,3.20950873,4145.2,4145.1,1.0078]
[1761662110310,0.2694,4144.4,4144.3,4.64995]
[1761662110507,0.4357,4144.8,4144.4,0.4395]
[1761662110812,0.7051,4144.5,4144.4,0.7353]
[1761662111006,0.9888,4144.5,4144.4,0.2958]
[1761662111510,0.9888,4144.5,4144.4,0.7353]
[1761662112204,3.2078,4144.7,4144.6,1.0078]
[1761662113013,3.20950873,4145.2,4145.1,1.44207]
[1761662113213,0.00170873,4145.2,4145.1,1.44207]
[1761662113412,0.00170873,4145.2,4145.1,1.51407]
[1761662113806,3.2078,4145.8,4145.7,1.442]
[1761662114007,3.2078,4145.8,4145.7,1.0078]
[1761662114216,0.4357,4145.7,4145.3,0.43424]
[1761662114516,0.2694,4145.8,4145.7,0.2958]
[1761662114707,0.70738541,4145.8,4145.7,0.2958]
[1761662115006,0.99108541,4145.8,4145.7,0.2958]
[1761662115206,0.2694,4145.5,4145.0,0.43428]
[1761662115417,3.21008541,4145.8,4144.7,0.169]
[1761662115418,0.4357,4145.4,4145.2,0.4395]
[1761662115608,0.4357,4145.7,4145.4,0.4395]
[1761662115802,3.21008541,4145.8,4144.3,0.87385]
[1761662115803,0.4357,4144.6,4144.3,0.87385]
[1761662116113,0.4357,4145.0,4144.3,0.4395]
[1761662116406,0.4357,4145.0,4144.6,0.4395]
[1761662116710,0.7051,4145.0,4144.9,0.2958]
[1761662116915,0.4357,4144.6,4144.3,0.4395]
[1761662117109,0.4357,4144.6,4144.3,0.87385]
[1761662117315,0.4357,4145.0,4144.6,0.87382]
[1761662117516,0.9888,4145.0,4144.7,0.072]
[1761662117717,0.7051,4143.9,4143.6,0.4395]
[1761662118015,0.7771,4143.7,4143.1,3.65037649]
[1761662118221,0.072,4143.2,4143.1,1.01087649]
[1761662118412,1.0608,4143.2,4143.1,0.00307649]
[1761662118615,1.1336,4143.2,4143.1,0.00307649]
[1761662118913,0.4357,4143.1,4142.0,0.4395]
[1761662119110,3.3771,4143.3,4141.7,3.2078]
[1761662119111,0.5531,4141.8,4141.7,3.2078]
[1761662119310,0.4357,4141.7,4141.2,0.2958]
[1761662119512,0.4357,4141.7,4141.4,3.2078]
[1761662119713,0.00236995,4141.7,4141.6,0.5683]
[1761662120415,0.00236995,4141.7,4141.6,1.0078]
[1761662120912,0.00236995,4141.7,4141.6,1.1768]
[1761662121218,0.4357,4142.6,4142.2,0.4395]
[1761662121419,0.4357,4142.6,4142.4,0.43454]
[1761662121615,3.2078,4142.7,4142.6,0.7353]
[1761662121811,0.4357,4142.6,4142.2,0.43457]
[1761662122119,0.43868406,4142.6,4142.3,0.87406]
[1761662122618,0.2694,4142.3,4142.1,3.2078]
[1761662122812,0.00298406,4142.6,4142.1,3.2078]
[1761662122813,0.9888,4142.2,4142.1,3.2078]
[1761662123013,0.4357,4142.1,4141.4,0.00239409]
[1761662123214,0.4357,4142.1,4141.8,0.4395]
[1761662123419,3.2078,4142.2,4142.1,0.7353]
[1761662123616,3.2078,4142.2,4142.1,0.8081]
[1761662123921,0.43868406,4142.6,4142.5,0.2958]
[1761662124117,0.00298406,4142.6,4142.5,0.7353]
[1761662124417,0.00298406,4142.6,4142.5,1.0078]
[1761662126422,3.2078,4143.4,4143.3,1.0078]
[1761662126718,3.2078,4144.3,4143.9,0.43439]
[1761662126912,3.2078,4144.3,4144.0,0.87388]
[1761662127118,0.2694,4144.2,4144.1,0.4395]
[1761662127421,0.27111166,4144.2,4144.1,0.4395]
[1761662127923,0.00171166,4144.2,4144.1,4.64997]
[1761662128520,0.00171166,4144.2,4144.1,4.72197]
[1761662129022,0.00171166,4144.2,4144.1,1.0078]
[1761662129326,0.55481166,4144.2,4143.7,0.87391]
[1761662129626,0.4357,4144.1,4143.7,0.87391]
[1761662129824,0.4357,4144.1,4143.7,0.4395]
[1761662130018,0.4357,4144.1,4143.8,0.8739]
[1761662130218,0.00171166,4144.2,4144.1,1.0078]
[1761662130618,0.27111166,4144.2,4144.1,0.7353]
[1761662131318,0.70681166,4144.2,4144.1,0.2958]
[1761662131621,0.00171166,4144.2,4144.1,0.7353]
[1761662133027,0.00171166,4144.2,4144.1,1.0078]
[1761662133428,0.00171166,4144.2,4144.1,1.0798]
[1761662133822,0.00171166,4144.2,4144.1,1.0078]
[1761662134123,0.00171166,4144.2,4144.1,1.0798]
[1761662135227,0.00171166,4144.2,4144.1,1.94163643]
[1761662135427,0.4013,4145.4,4145.1,0.4352]
[1761662135626,0.4013,4145.1,4144.8,0.4352]
[1761662135929,0.4013,4145.1,4144.9,0.4352]
[1761662136129,41.2013,4145.6,4145.0,0.321]
[1761662136327,0.4013,4145.5,4145.1,0.4352]
[1761662137031,0.0021143,4145.6,4145.5,0.7562]
[1761662137226,0.0021143,4145.6,4145.5,1.0326]
[1761662137432,0.7299143,4145.6,4145.5,1.0326]
[1761662137626,0.7299143,4145.6,4145.5,0.321]
[1761662137821,0.7299143,4145.6,4145.1,0.43426]
[1761662137822,0.3286143,4145.6,4145.1,0.43426]
[1761662138132,0.4013,4145.5,4145.2,0.4352]
[1761662139130,0.0021143,4145.6,4145.3,0.4352]
[1761662139330,0.0021143,4145.6,4145.5,1.0326]
[1761662139939,0.7299143,4145.6,4145.5,1.0326]
[1761662140136,0.0021143,4145.6,4145.5,1.0326]
[1761662140535,0.0021143,4145.6,4145.5,1.46682]
[1761662141330,0.0021143,4145.6,4145.5,1.0326]
[1761662141732,0.0021143,4145.6,4145.5,1.46682]
[1761662143830,0.0021143,4145.6,4145.5,1.0326]
[1761662144029,0.0021143,4145.6,4145.5,1.46682]
[1761662144430,0.0021143,4145.6,4145.5,1.0326]
[1761662144431,0.3286143,4145.6,4145.5,1.0326]
[1761662144831,0.0021143,4145.6,4145.5,1.0326]
[1761662145344,0.0021143,4145.6,4145.5,1.46682]
[1761662145529,0.0021143,4145.6,4145.5,1.0326]
[1761662145729,0.7299143,4145.6,4145.5,1.0326]
[1761662146141,0.3286143,4145.6,4145.5,1.0326]
[1761662146350,0.0021143,4145.6,4145.5,1.0326]
[1761662147126,0.0021143,4145.6,4145.5,1.46682]
[1761662147939,1.0107143,4145.6,4145.3,3.2078]
[1761662148141,1.0086,4145.1,4145.0,0.00263274]
[1761662148337,0.0021143,4145.6,4145.5,1.0326]
[1761662148531,1.0107143,4145.6,4145.0,0.00263274]
[1761662148733,0.3265,4145.2,4145.1,0.7562]
[1761662149037,0.3265,4145.2,4145.1,1.0326]
[1761662149237,0.3286143,4145.6,4145.5,1.0326]
[1761662149440,1.0107143,4145.6,4145.5,0.321]
[1761662149937,1.0086,4145.2,4145.1,0.4352]
[1761662150236,1.0086,4145.1,4145.0,0.00263274]
[1761662151541,1.0086,4145.1,4145.0,0.75883274]
[1761662151933,1.0086,4145.1,4145.0,0.32363274]
[1761662153244,1.0086,4145.1,4145.0,0.75883274]
[1761662154539,0.3265,4145.4,4145.3,0.7562]
[1761662154745,0.3265,4145.4,4145.3,1.0326]
[1761662155739,1.0086,4145.4,4145.3,1.0326]
[1761662155941,1.0086,4145.4,4145.3,0.7562]
[1761662156447,1.0086,4145.4,4145.3,1.0326]
[1761662156645,1.0086,4145.4,4145.3,0.321]
[1761662156839,1.0086,4145.2,4145.1,0.86172644]
[1761662157443,1.0086,4145.1,4145.0,0.86435918]
[1761662157641,1.0086,4145.1,4145.0,1.18535918]
[1761662157948,1.0086,4145.1,4145.0,1.62055918]
[1761662158143,0.6073,4145.1,4145.0,1.89695918]
[1761662158346,0.4034143,4145.6,4145.5,0.321]
[1761662158648,1.0107143,4145.6,4145.5,0.321]
[1761662158838,1.0086,4145.4,4145.3,0.7562]
[1761662159041,1.0086,4145.4,4145.3,1.0326]
[1761662159251,1.0086,4145.4,4145.3,1.89432644]
[1761662159843,0.3286143,4145.6,4145.5,1.0326]
[1761662160042,0.3286143,4145.6,4145.5,1.89813082]
[1761662160242,0.7299143,4145.6,4145.5,1.89813082]
[1761662160652,0.0021143,4145.6,4145.5,1.89813082]
[1761662160946,0.0021143,4145.6,4145.5,2.82927507]
[1761662161141,41.2013,4146.1,4145.7,0.5974]
[1761662161347,0.3265,4145.8,4145.7,0.5974]
[1761662161546,41.2013,4146.1,4146.0,0.321]
[1761662161747,1.0086,4145.6,4145.5,1.29045507]
[1761662161944,0.6073,4145.1,4145.0,0.00263274]
[1761662162141,4.21877381,4145.1,4145.0,0.00263274]
[1761662162546,45.01877381,4145.1,4145.0,0.00263274]
[1761662163150,0.6073,4144.0,4143.9,1.72060676]
[1761662163346,1.0086,4143.9,4143.6,3.2078]
[1761662163648,1.0086,4143.1,4143.0,3.2078]
[1761662163844,0.1944,4144.2,4142.5,0.4352]
[1761662163845,0.4013,4143.0,4142.5,0.4352]
[1761662164042,0.4013,4143.0,4142.6,0.4352]
[1761662164244,0.4013,4143.0,4142.6,0.43775611]
[1761662164441,1.1031,4142.7,4142.6,0.00255611]
[1761662164640,1.1222,4142.0,4141.9,0.19495212]
[1761662164841,1.1222,4141.8,4141.7,3.2078]
[1761662165047,41.9222,4141.8,4141.7,3.2078]
[1761662165249,0.8057,4140.8,4140.7,3.6552]
[1761662165749,1.1222,4140.8,4140.7,3.2078]
[1761662165948,1.12472637,4140.8,4140.7,3.21090303]
[1761662166553,1.12472637,4140.8,4140.7,0.00310303]
[1761662167144,1.1222,4140.1,4140.0,9.08432426]
[1761662167451,1.195,4140.1,4140.0,9.08432426]
[1761662167847,1.1222,4140.1,4140.0,9.08432426]
[1761662168445,0.00252637,4140.8,4140.7,0.43473]
[1761662168650,0.00252637,4140.8,4140.7,0.8358]
[1761662169054,0.00252637,4140.8,4140.7,1.1773]
[1761662169348,0.86922637,4140.8,4140.7,1.1773]
[1761662169554,0.86922637,4140.8,4140.7,0.3415]
[1761662169749,1.1905,4140.7,4140.6,0.43473]
[1761662170059,0.07532637,4140.8,4140.5,3.2078]
[1761662170060,1.1905,4140.6,4140.5,3.2078]
[1761662170557,41.9905,4140.6,4140.0,12.72922231]
[1761662170757,41.9905,4140.6,4140.0,13.22352231]
[1761662170953,40.8,4140.6,4140.5,0.3415]
[1761662171149,41.3195,4140.6,4140.0,12.29443231]
[1761662171348,1.1905,4140.1,4140.0,9.08663231]
[1761662171854,1.2633,4140.1,4140.0,9.08663231]
[1761662172656,1.2633,4140.1,4140.0,4.96989377]
[1761662172952,0.7438,4140.1,4140.0,2.28759377]
[1761662173158,41.5438,4140.1,4140.0,0.60459377]
[1761662173754,41.5438,4140.1,4140.0,0.53179377]
[1761662173949,41.22,4140.1,4140.0,0.53179377]
[1761662174151,40.8,4140.1,4140.0,0.53179377]
[1761662174452,40.8,4140.1,4140.0,0.45899377]
[1761662174652,40.8728,4140.1,4140.0,0.45899377]
[1761662174855,40.8728,4140.1,4140.0,0.13356249]
[1761662175054,40.8728,4140.1,4139.8,0.1893]
[1761662175249,3.2078,4139.9,4139.8,0.1893]
[1761662175460,3.2078,4139.9,4139.1,0.1893]
[1761662175649,3.2078,4139.3,4139.1,0.1893]
[1761662176051,40.8,4139.2,4139.1,0.1893]
[1761662176257,40.8,4139.2,4139.1,0.8723]
[1761662176458,40.8,4139.2,4139.1,0.5308]
[1761662176755,40.8,4139.2,4139.1,0.19168783]
[1761662176946,40.8,4139.2,4139.1,0.68598783]
[1761662177153,40.8728,4139.2,4139.1,0.68598783]
[1761662177352,40.8,4139.2,4139.1,0.68598783]
[1761662177552,40.8,4139.2,4139.1,1.36898783]
[1761662177748,40.8,4139.2,4139.1,1.58738783]
[1761662178358,0.00252637,4140.8,4140.6,0.4943]
[1761662178553,3.2806,4140.7,4140.6,0.4943]
[1761662178755,44.0806,4140.7,4139.8,0.1893]
[1761662178954,0.0728,4140.6,4139.8,0.1893]
[1761662179458,44.0078,4140.7,4140.5,0.1893]
[1761662179647,0.0728,4140.6,4140.5,0.1893]
[1761662179855,0.0728,4140.6,4139.8,0.1893]
[1761662180059,3.2078,4140.7,4140.5,0.1893]
[1761662180454,40.8,4140.6,4140.5,0.1893]
[1761662180655,40.8,4140.6,4140.5,1.0251]
[1761662180855,0.00252637,4140.8,4140.7,1.1773]
[1761662181054,3.2078,4141.7,4141.3,0.4943]
[1761662181558,40.8728,4141.6,4141.3,0.4943]
[1761662181955,0.0728,4141.5,4140.5,0.1893]
[1761662182156,3.2078,4140.8,4140.5,0.1893]
[1761662182357,40.80226951,4141.6,4140.5,0.1893]
[1761662182358,3.2078,4141.3,4140.5,0.1893]
[1761662183058,3.2078,4141.3,4140.5,0.62404]
[1761662183253,3.2078,4141.3,4140.6,0.43473]
[1761662183452,40.80226951,4141.6,4141.2,0.3415]
[1761662183650,40.80226951,4141.6,4141.3,0.2184]
[1761662183859,40.80226951,4141.6,4141.5,0.7127]
[1761662184060,40.80226951,4141.6,4141.5,1.1773]
[1761662184262,40.80226951,4141.6,4141.5,1.3957]
[1761662184460,40.80226951,4141.6,4141.5,1.1773]
[1761662184668,40.80226951,4141.6,4141.5,1.3957]
[1761662185467,40.80226951,4141.6,4141.5,0.8358]
[1761662185669,40.80226951,4141.6,4141.5,0.4943]
[1761662186759,40.80226951,4141.6,4141.5,1.3957]
[1761662186960,40.80226951,4141.6,4141.5,4.6035]
[1761662187559,3.2078,4142.6,4141.9,0.1893]
[1761662187766,3.2078,4142.6,4142.5,0.4943]
[1761662188060,44.0078,4142.6,4142.5,0.4943]
[1761662188265,44.0078,4142.6,4142.5,0.7127]
[1761662188560,44.01076358,4142.6,4142.5,0.83750835]
[1761662188868,40.80296358,4142.6,4142.5,1.39740835]
[1761662189064,44.01076358,4142.6,4142.5,0.49600835]
[1761662189364,44.08356358,4142.6,4141.9,0.1893]
[1761662189565,44.08356358,4142.6,4142.4,0.1893]
[1761662189863,0.0728,4142.5,4142.4,0.1893]
[1761662190165,3.21076358,4142.6,4142.4,0.1893]
[1761662190366,3.21076358,4142.6,4142.4,0.19112075]
[1761662190559,40.8,4142.5,4142.4,0.19112075]
[1761662191365,40.8,4142.5,4142.4,0.68542075]
[1761662191760,40.8,4142.5,4142.4,1.58682075]
[1761662192168,0.00296358,4142.6,4142.5,1.61183]
[1761662192469,0.00296358,4142.6,4142.5,1.1773]
[1761662192668,40.80296358,4142.6,4142.5,1.1773]
[1761662192964,0.00296358,4142.6,4142.5,1.3957]
[1761662195573,6.66393107,4143.3,4143.2,1.485]
[1761662196264,40.8,4144.1,4144.0,0.3225]
[1761662196472,40.872,4144.1,4144.0,0.8087]
[1761662196669,40.8747663,4144.1,4144.0,0.8087]
[1761662197466,40.8747663,4144.1,4143.5,0.4862]
[1761662197667,0.072,4144.0,4143.5,0.4862]
[1761662198065,40.8027663,4144.1,4144.0,0.3225]
[1761662198268,40.8027663,4144.1,4144.0,0.8087]
[1761662198967,40.8027663,4144.1,4144.0,0.3225]
[1761662199172,40.8027663,4144.1,4143.5,0.4862]
[1761662199574,0.072,4144.0,4143.5,0.4862]
[1761662199968,40.8027663,4144.1,4143.5,0.4862]
[1761662200174,40.8027663,4144.1,4143.2,0.8087]
[1761662200374,3.2078,4143.8,4143.2,0.8087]
[1761662201368,40.8,4143.7,4143.3,0.4862]
[1761662201981,40.8,4143.7,4143.3,0.92064]
[1761662202176,40.8,4143.7,4143.6,1.0585]
[1761662202772,40.8,4143.7,4143.6,4.2663]
[1761662202972,40.8,4143.7,4143.6,4.6011]
[1761662205485,40.8,4143.7,4143.6,4.2663]
[1761662206176,40.8,4143.7,4143.6,4.6011]
[1761662208496,0.0027663,4144.1,4143.6,4.6011]
[1761662208497,0.0027663,4144.1,4144.0,1.381]
[1761662208687,0.0027663,4144.1,4144.0,1.7158]
[1761662208983,3.2078,4145.3,4145.2,1.0585]
[1761662209188,3.2078,4145.3,4145.2,0.4862]
[1761662209389,44.0078,4145.3,4145.2,0.4862]
[1761662209775,44.08218401,4145.3,4145.2,0.4862]
[1761662209975,44.01018401,4145.3,4145.2,0.4862]
[1761662210384,44.08218401,4145.3,4145.2,0.4862]
[1761662210784,44.01018401,4145.3,4145.2,0.4862]
[1761662212289,44.08218401,4145.3,4145.2,0.4862]
[1761662213888,44.08218401,4145.3,4144.8,0.4862]
[1761662214083,0.60010744,4145.2,4144.7,0.3225]
[1761662214283,0.52810744,4145.1,4144.7,0.3225]
[1761662214482,0.60010744,4145.1,4144.3,0.4862]
[1761662214690,0.60010744,4145.0,4144.3,0.4862]
[1761662214993,40.8,4144.6,4144.3,0.4862]
[1761662215493,0.072,4144.5,4144.4,0.4862]
[1761662216080,0.072,4144.5,4144.2,3.2078]
[1761662216289,0.60052678,4144.4,4144.1,0.4862]
[1761662216491,3.80832678,4144.3,4144.1,0.4862]
[1761662216691,0.52852678,4144.2,4144.1,0.4862]
[1761662216891,0.60052678,4144.2,4144.1,0.4862]
[1761662217382,41.40052678,4144.2,4144.1,0.4862]
[1761662217780,41.32852678,4144.2,4144.1,0.4862]
[1761662218394,41.32852678,4144.2,4144.1,1.0585]
[1761662218589,41.32852678,4144.2,4144.1,1.3933]
[1761662218794,40.8,4144.2,4144.1,1.3933]
[1761662219390,40.8,4144.2,4144.1,0.4862]
[1761662219588,41.32936908,4144.2,4144.1,0.4862]
[1761662219988,40.8,4144.2,4144.1,4.6011]
[1761662220381,40.8,4144.2,4144.1,1.3933]
[1761662220588,40.872,4144.2,4144.1,1.0585]
[1761662220789,41.40022965,4144.2,4144.1,0.4862]
[1761662220989,41.40022965,4144.2,4144.0,0.3225]
[1761662221189,0.60022965,4144.1,4144.0,0.8087]
[1761662221397,3.73602965,4144.1,4143.1,0.4862]
[1761662221584,3.73602965,4144.1,4142.4,1.28060613]
[1761662221585,3.2078,4143.6,4142.4,0.00182075]
[1761662221790,4.06246295,4143.1,4142.4,0.00182075]
[1761662221989,44.0078,4142.6,4141.9,0.3225]
[1761662222297,3.2078,4142.1,4141.4,0.4862]
[1761662222594,0.52822965,4142.0,4141.4,0.4862]
[1761662222793,0.60102965,4141.9,4141.4,0.4862]
[1761662222992,44.86246295,4142.6,4142.1,0.4862]
[1761662223298,44.0078,4142.6,4142.1,0.4862]
[1761662223498,44.01056141,4142.6,4142.5,0.4862]
[1761662223693,44.53825576,4142.6,4142.5,0.4862]
[1761662223893,44.61105576,4142.6,4142.5,0.4862]
[1761662224093,44.53825576,4142.6,4142.5,0.4862]
[1761662224293,44.53825576,4142.6,4142.5,0.48802075]
[1761662224489,44.01056141,4142.6,4142.5,0.4862]
[1761662226100,40.80276141,4142.6,4142.5,0.4862]
[1761662226502,40.87556141,4142.6,4142.5,0.4862]
[1761662226997,40.80276141,4142.6,4142.5,0.4862]
[1761662227198,40.80276141,4142.6,4142.5,0.48802075]
[1761662227895,44.08336141,4142.6,4142.5,0.4862]
[1761662228505,44.08336141,4142.6,4142.5,0.9779]
[1761662228506,40.80276141,4142.6,4142.5,0.9779]
[1761662228695,40.80276141,4142.6,4142.5,0.4862]
[1761662228891,44.08336141,4142.6,4142.2,0.7127]
[1761662229092,0.59984831,4142.5,4142.2,0.7127]
[1761662229297,3.21056141,4142.6,4142.2,0.7127]
[1761662229501,40.8,4142.3,4142.2,1.20622075]
[1761662229801,40.8,4142.3,4142.2,1.6955]
[1761662230106,40.8,4142.3,4142.2,1.69732075]
[1761662233802,3.21056141,4142.6,4142.5,0.9828]
[1761662233803,0.00276141,4142.6,4142.5,0.9828]
[1761662234103,3.20597925,4143.7,4143.6,1.6955]
[1761662234402,44.00597925,4143.7,4143.6,1.6955]
[1761662235199,44.00901236,4143.7,4143.6,0.7127]
[1761662235395,40.80303311,4143.7,4143.6,1.6955]
[1761662235596,3.2078,4145.3,4144.6,1.2044]
[1761662235801,3.2078,4145.3,4144.8,0.7127]
[1761662236004,41.3266133,4145.2,4144.8,0.7127]
[1761662236194,40.8,4145.2,4144.8,0.7127]
[1761662236800,40.8026108,4145.2,4144.8,0.7127]
[1761662237403,40.8026108,4145.2,4145.1,1.2044]
[1761662237607,40.8026108,4145.2,4145.1,1.6955]
[1761662237907,40.8026108,4145.2,4145.1,1.69749761]
[1761662238702,40.8026108,4145.2,4145.1,4.90529761]
[1761662239003,3.2078,4146.3,4146.2,1.6955]
[1761662239202,3.2078,4146.8,4146.3,0.7127]
[1761662239410,40.8,4146.7,4146.3,0.7127]
[1761662239703,40.8,4146.7,4145.4,1.0057]
[1761662239909,3.2078,4145.7,4145.5,0.7127]
[1761662240303,0.072,4145.6,4145.5,0.7127]
[1761662241011,40.872,4145.6,4145.5,0.7127]
[1761662241311,40.8,4145.6,4145.5,0.7127]
[1761662242103,40.8,4145.6,4145.5,1.6955]
[1761662243905,3.2078,4146.4,4146.2,0.7127]
[1761662244306,40.8,4146.3,4146.2,0.7127]
[1761662245005,40.8,4146.3,4146.2,1.2044]
[1761662245313,40.872,4146.3,4145.8,0.7127]
[1761662245511,3.2078,4145.9,4145.4,0.293]
[1761662245706,3.2078,4145.9,4145.1,0.00199761]
[1761662245901,3.2078,4145.2,4144.1,0.7127]
[1761662246105,3.2078,4144.6,4144.1,0.7127]
[1761662246314,0.072,4144.5,4144.1,0.7127]
[1761662246706,0.072,4144.4,4144.1,0.7127]
[1761662247004,0.072,4144.5,4144.1,0.71458019]
[1761662247211,0.072,4144.5,4144.1,0.00188019]
[1761662247407,0.072,4144.4,4144.2,0.7127]
[1761662247607,0.072,4144.5,4144.2,0.7127]
[1761662247814,3.2078,4144.6,4144.0,0.22288019]
[1761662248009,3.2078,4144.1,4144.0,0.22288019]
[1761662248511,11.2798,4144.1,4144.0,0.22288019]
[1761662248702,3.2798,4144.1,4144.0,0.22288019]
[1761662248907,3.2078,4144.1,4144.0,0.93558019]
[1761662249105,3.2078,4144.1,4144.0,1.01022418]
[1761662249310,44.0078,4144.1,4144.0,1.01022418]
[1761662250612,44.0078,4144.1,4144.0,0.93822418]
[1761662251110,44.0078,4144.1,4144.0,1.01022418]
[1761662251914,44.0078,4144.1,4144.0,1.99302418]
[1761662252314,44.0078,4144.1,4144.0,1.50192418]
[1761662252912,44.0078,4144.1,4144.0,0.93822418]
[1761662253516,44.0078,4144.1,4144.0,1.01022418]